[Event "Titled Tuesday Blitz May 31 Late 2022"]
[White "Song, Michael"]
[Black "Niemann, Hans Moke"]
[WhiteFideId "2613190"]
[BlackFideId "2093596"]
[WhiteElo "2274"]
[BlackElo "2632"]
[Result "0-1"]
[Round "01"]
[TimeControl "180+1"]
[Date "2022.05.31"]
[WhiteClock "0:00:07"]
[BlackClock "0:00:08"]

1. d4 {[%clk 0:03:00]}  Nf6 {[%clk 0:02:56]} 2. c4 {[%clk 0:03:00]}  e6 {[%clk 0:02:55]} 3. Nc3 {[%clk 0:03:00]}  Bb4 {[%clk 0:02:55]} 4. e3 {[%clk 0:02:59]}  O-O {[%clk 0:02:55]} 5. Bd3 {[%clk 0:02:57]}  d5 {[%clk 0:02:55]} 6. cxd5 {[%clk 0:02:58]}  exd5 {[%clk 0:02:54]} 7. a3 {[%clk 0:02:58]}  Bd6 {[%clk 0:02:50]} 8. Qc2 {[%clk 0:02:57]}  c6 {[%clk 0:02:43]} 9. Nge2 {[%clk 0:02:57]}  Re8 {[%clk 0:02:35]} 10. Bd2 {[%clk 0:02:57]}  b6 {[%clk 0:02:35]} 11. f3 {[%clk 0:02:52]}  c5 {[%clk 0:02:35]} 12. h4 {[%clk 0:02:39]}  Nc6 {[%clk 0:02:26]} 13. O-O-O {[%clk 0:02:31]}  h5 {[%clk 0:02:07]} 14. g4 {[%clk 0:02:18]}  hxg4 {[%clk 0:02:06]} 15. fxg4 {[%clk 0:02:19]}  Bxg4 {[%clk 0:02:06]} 16. Rdg1 {[%clk 0:01:59]}  Rc8 {[%clk 0:02:05]} 17. Bf5 {[%clk 0:01:32]}  cxd4 {[%clk 0:01:40]} 18. Nxd4 {[%clk 0:01:25]}  Nxd4 {[%clk 0:01:38]} 19. exd4 {[%clk 0:01:23]}  Bxf5 {[%clk 0:01:36]} 20. Qxf5 {[%clk 0:01:24]}  Ne4 {[%clk 0:01:21]} 21. Bh6 {[%clk 0:00:41]}  Bf8 {[%clk 0:01:11]} 22. Rxg7+ {[%clk 0:00:34]}  Bxg7 {[%clk 0:01:06]} 23. Rg1 {[%clk 0:00:34]}  Qf6 {[%clk 0:00:46]} 24. Rxg7+ {[%clk 0:00:26]}  Qxg7 {[%clk 0:00:46]} 25. Bxg7 {[%clk 0:00:26]}  Kxg7 {[%clk 0:00:47]} 26. Qxd5 {[%clk 0:00:23]}  Nxc3 {[%clk 0:00:43]} 27. bxc3 {[%clk 0:00:23]}  Rxc3+ {[%clk 0:00:42]} 28. Kb2 {[%clk 0:00:23]}  Rg3 {[%clk 0:00:42]} 29. Qb5 {[%clk 0:00:18]}  Re4 {[%clk 0:00:39]} 30. d5 {[%clk 0:00:13]}  Rxh4 {[%clk 0:00:38]} 31. Qe2 {[%clk 0:00:09]}  Rhg4 {[%clk 0:00:35]} 32. Qe5+ {[%clk 0:00:09]}  f6 {[%clk 0:00:30]} 33. Qe7+ {[%clk 0:00:09]}  Kg6 {[%clk 0:00:31]} 34. d6 {[%clk 0:00:10]}  Rf4 {[%clk 0:00:23]} 35. Qe8+ {[%clk 0:00:09]}  Kf5 {[%clk 0:00:23]} 36. Qc8+ {[%clk 0:00:06]}  Ke5 {[%clk 0:00:20]} 37. Qe8+ {[%clk 0:00:04]}  Kd5 {[%clk 0:00:21]} 38. Qa8+ {[%clk 0:00:04]}  Kc5 {[%clk 0:00:16]} 39. Qc8+ {[%clk 0:00:05]}  Kb5 {[%clk 0:00:14]} 40. a4+ {[%clk 0:00:04]}  Kb4 {[%clk 0:00:13]} 41. Qc2 {[%clk 0:00:02]}  Rd4 {[%clk 0:00:13]} 42. Ka2 {[%clk 0:00:01]}  Rgd3 {[%clk 0:00:12]} 43. Qb2+ {[%clk 0:00:01]}  Kc5 {[%clk 0:00:09]} 44. Qc2+ {[%clk 0:00:02]}  Kxd6 {[%clk 0:00:09]} 45. Qc8 {[%clk 0:00:03]}  Ke5 {[%clk 0:00:09]} 46. Qe8+ {[%clk 0:00:03]}  Kf4 {[%clk 0:00:09]} 47. Qe7 {[%clk 0:00:03]}  f5 {[%clk 0:00:10]} 48. Qf6 {[%clk 0:00:04]}  Rd7 {[%clk 0:00:10]} 49. Qh4+ {[%clk 0:00:03]}  Ke5 {[%clk 0:00:10]} 50. Qe1+ {[%clk 0:00:02]}  Kd5 {[%clk 0:00:09]} 51. Qf2 {[%clk 0:00:03]}  Ke4 {[%clk 0:00:09]} 52. Qe2+ {[%clk 0:00:03]}  Re3 {[%clk 0:00:10]} 53. Qc4+ {[%clk 0:00:04]}  Kf3 {[%clk 0:00:10]} 54. Qf1+ {[%clk 0:00:04]}  Kg4 {[%clk 0:00:10]} 55. Qc4+ {[%clk 0:00:05]}  Re4 {[%clk 0:00:10]} 56. Qg8+ {[%clk 0:00:05]}  Kf4 {[%clk 0:00:10]} 57. Qb8+ {[%clk 0:00:06]}  Re5 {[%clk 0:00:11]} 58. Qc8 {[%clk 0:00:05]}  Rd2+ {[%clk 0:00:10]} 59. Kb3 {[%clk 0:00:05]}  Rd3+ {[%clk 0:00:11]} 60. Kc4 {[%clk 0:00:06]}  Rde3 {[%clk 0:00:10]} 61. Qh8 {[%clk 0:00:05]}  R5e4+ {[%clk 0:00:09]} 62. Kd5 {[%clk 0:00:06]}  Rd3+ {[%clk 0:00:09]} 63. Kc6 {[%clk 0:00:06]}  Ke3 {[%clk 0:00:09]} 64. Qh3+ {[%clk 0:00:06]}  Kd4 {[%clk 0:00:09]} 65. Qxf5 {[%clk 0:00:06]}  Rde3 {[%clk 0:00:09]} 66. Qd5+ {[%clk 0:00:06]}  Kc3 {[%clk 0:00:09]} 67. Kb7 {[%clk 0:00:07]}  Re7+ {[%clk 0:00:09]} 68. Ka6 {[%clk 0:00:07]}  R3e5 {[%clk 0:00:10]} 69. Qc6+ {[%clk 0:00:07]}  Rc5 {[%clk 0:00:09]} 70. Qf6+ {[%clk 0:00:08]}  Rce5 {[%clk 0:00:08]} 71. Qf3+ {[%clk 0:00:07]}  Kb4 {[%clk 0:00:08]} 72. Qd1 {[%clk 0:00:07]}  Ra5# {[%clk 0:00:08]} 0-1


[Site "https://www.chess.com"]

[Event "Titled Tuesday Blitz May 31 Late 2022"]
[White "Svane, Rasmus"]
[Black "Urbina Perez, Juan Antonio"]
[WhiteFideId "4657101"]
[BlackFideId "2217368"]
[WhiteElo "2674"]
[BlackElo "2192"]
[Result "1-0"]
[Round "01"]
[TimeControl "180+1"]
[Date "2022.05.31"]
[WhiteClock "0:00:10"]
[BlackClock "0:00:01"]

1. Nf3 {[%clk 0:03:00]}  d5 {[%clk 0:02:59]} 2. g3 {[%clk 0:03:01]}  Nd7 {[%clk 0:03:00]} 3. d4 {[%clk 0:03:00]}  Nb6 {[%clk 0:02:57]} 4. b3 {[%clk 0:02:59]}  Bf5 {[%clk 0:02:54]} 5. Nh4 {[%clk 0:02:59]}  Be4 {[%clk 0:02:52]} 6. f3 {[%clk 0:02:58]}  Bg6 {[%clk 0:02:52]} 7. e4 {[%clk 0:02:57]}  dxe4 {[%clk 0:02:43]} 8. Nxg6 {[%clk 0:02:57]}  hxg6 {[%clk 0:02:41]} 9. fxe4 {[%clk 0:02:57]}  e5 {[%clk 0:02:33]} 10. c3 {[%clk 0:02:57]}  exd4 {[%clk 0:02:30]} 11. cxd4 {[%clk 0:02:57]}  Bb4+ {[%clk 0:02:30]} 12. Kf2 {[%clk 0:02:56]}  Qf6+ {[%clk 0:02:27]} 13. Kg2 {[%clk 0:02:52]}  O-O-O {[%clk 0:02:22]} 14. Be3 {[%clk 0:02:52]}  Qe7 {[%clk 0:02:11]} 15. Qf3 {[%clk 0:02:45]}  Nf6 {[%clk 0:02:00]} 16. a3 {[%clk 0:02:45]}  Bd6 {[%clk 0:01:46]} 17. e5 {[%clk 0:02:46]}  Bxe5 {[%clk 0:01:46]} 18. dxe5 {[%clk 0:02:46]}  Qxe5 {[%clk 0:01:46]} 19. Ra2 {[%clk 0:02:46]}  Nbd5 {[%clk 0:01:42]} 20. Bf2 {[%clk 0:02:41]}  Ne4 {[%clk 0:01:25]} 21. Re2 {[%clk 0:01:55]}  f5 {[%clk 0:01:24]} 22. Nd2 {[%clk 0:01:55]}  Ndc3 {[%clk 0:01:16]} 23. Nc4 {[%clk 0:01:48]}  Qd5 {[%clk 0:01:05]} 24. Re3 {[%clk 0:01:46]}  Qd4 {[%clk 0:00:36]} 25. Rd3 {[%clk 0:01:37]}  Qf6 {[%clk 0:00:36]} 26. Be1 {[%clk 0:01:30]}  Nd5 {[%clk 0:00:33]} 27. h4 {[%clk 0:01:17]}  g5 {[%clk 0:00:26]} 28. hxg5 {[%clk 0:01:16]}  Nxg5 {[%clk 0:00:22]} 29. Rxh8 {[%clk 0:01:13]}  Nxf3 {[%clk 0:00:21]} 30. Rxd8+ {[%clk 0:01:13]}  Qxd8 {[%clk 0:00:21]} 31. Kxf3 {[%clk 0:01:09]}  c6 {[%clk 0:00:21]} 32. Ne3 {[%clk 0:01:08]}  Qg5 {[%clk 0:00:19]} 33. Nxd5 {[%clk 0:01:08]}  cxd5 {[%clk 0:00:19]} 34. Bd2 {[%clk 0:00:55]}  Qg4+ {[%clk 0:00:19]} 35. Kf2 {[%clk 0:00:56]}  Qe4 {[%clk 0:00:18]} 36. Be3 {[%clk 0:00:51]}  b6 {[%clk 0:00:17]} 37. b4 {[%clk 0:00:46]}  g5 {[%clk 0:00:17]} 38. Rd4 {[%clk 0:00:47]}  Qc2+ {[%clk 0:00:16]} 39. Kg1 {[%clk 0:00:47]}  f4 {[%clk 0:00:15]} 40. gxf4 {[%clk 0:00:47]}  gxf4 {[%clk 0:00:16]} 41. Rxf4 {[%clk 0:00:41]}  Qg6+ {[%clk 0:00:16]} 42. Bg2 {[%clk 0:00:40]}  Qb1+ {[%clk 0:00:16]} 43. Kh2 {[%clk 0:00:39]}  Qh7+ {[%clk 0:00:15]} 44. Kg3 {[%clk 0:00:39]}  Qg6+ {[%clk 0:00:15]} 45. Rg4 {[%clk 0:00:36]}  Qd3 {[%clk 0:00:15]} 46. Kf2 {[%clk 0:00:33]}  Qc2+ {[%clk 0:00:15]} 47. Kf3 {[%clk 0:00:30]}  Qd1+ {[%clk 0:00:14]} 48. Kg3 {[%clk 0:00:29]}  Qe1+ {[%clk 0:00:13]} 49. Bf2 {[%clk 0:00:30]}  Qe5+ {[%clk 0:00:14]} 50. Rf4 {[%clk 0:00:30]}  Qg5+ {[%clk 0:00:14]} 51. Kf3 {[%clk 0:00:29]}  Qh5+ {[%clk 0:00:14]} 52. Kg3 {[%clk 0:00:24]}  Qg5+ {[%clk 0:00:14]} 53. Rg4 {[%clk 0:00:24]}  Qe5+ {[%clk 0:00:14]} 54. Kh3 {[%clk 0:00:24]}  Qh5+ {[%clk 0:00:14]} 55. Rh4 {[%clk 0:00:22]}  Qf5+ {[%clk 0:00:14]} 56. Kg3 {[%clk 0:00:23]}  Qg5+ {[%clk 0:00:15]} 57. Kh2 {[%clk 0:00:23]}  Qe5+ {[%clk 0:00:13]} 58. Bg3 {[%clk 0:00:23]}  Qb2 {[%clk 0:00:12]} 59. a4 {[%clk 0:00:22]}  d4 {[%clk 0:00:12]} 60. Kh3 {[%clk 0:00:19]}  d3 {[%clk 0:00:12]} 61. Bc6 {[%clk 0:00:19]}  d2 {[%clk 0:00:09]} 62. Bf3 {[%clk 0:00:12]}  Qa1 {[%clk 0:00:03]} 63. Rc4+ {[%clk 0:00:10]}  Kd8 {[%clk 0:00:03]} 64. Rc6 {[%clk 0:00:09]}  Qf1+ {[%clk 0:00:02]} 65. Kg4 {[%clk 0:00:09]}  d1=Q {[%clk 0:00:01]} 66. Rd6+ {[%clk 0:00:09]}  Qxd6 {[%clk 0:00:01]} 67. Bxd6 {[%clk 0:00:10]} 1-0


[Site "https://www.chess.com"]

[Event "Titled Tuesday Blitz May 31 Late 2022"]
[White "Swiercz, Dariusz"]
[Black "Ozsakallioglu, Okan"]
[WhiteFideId "1126881"]
[BlackFideId "6367011"]
[WhiteElo "2627"]
[BlackElo "2003"]
[Result "1-0"]
[Round "01"]
[TimeControl "180+1"]
[Date "2022.05.31"]
[WhiteClock "0:01:03"]
[BlackClock "0:00:19"]

1. d4 {[%clk 0:03:00]}  d5 {[%clk 0:02:59]} 2. Nf3 {[%clk 0:02:59]}  Nf6 {[%clk 0:02:59]} 3. Bf4 {[%clk 0:02:59]}  Bf5 {[%clk 0:02:59]} 4. e3 {[%clk 0:02:58]}  e6 {[%clk 0:02:58]} 5. Bd3 {[%clk 0:02:59]}  Bxd3 {[%clk 0:02:57]} 6. Qxd3 {[%clk 0:03:00]}  Bd6 {[%clk 0:02:56]} 7. Bg3 {[%clk 0:03:00]}  Bxg3 {[%clk 0:02:55]} 8. hxg3 {[%clk 0:03:01]}  O-O {[%clk 0:02:54]} 9. Nbd2 {[%clk 0:03:00]}  Nbd7 {[%clk 0:02:54]} 10. g4 {[%clk 0:02:59]}  g6 {[%clk 0:02:51]} 11. g5 {[%clk 0:02:59]}  Ne8 {[%clk 0:02:49]} 12. e4 {[%clk 0:02:48]}  dxe4 {[%clk 0:02:48]} 13. Nxe4 {[%clk 0:02:48]}  Nd6 {[%clk 0:02:46]} 14. O-O-O {[%clk 0:02:45]}  Qe7 {[%clk 0:02:41]} 15. Qe3 {[%clk 0:02:16]}  Rae8 {[%clk 0:02:24]} 16. Qf4 {[%clk 0:02:00]}  Nxe4 {[%clk 0:02:19]} 17. Qxe4 {[%clk 0:01:59]}  c6 {[%clk 0:02:05]} 18. Rxh7 {[%clk 0:01:41]}  f5 {[%clk 0:00:40]} 19. Rxe7 {[%clk 0:01:37]}  fxe4 {[%clk 0:00:40]} 20. Rxd7 {[%clk 0:01:36]}  exf3 {[%clk 0:00:40]} 21. gxf3 {[%clk 0:01:36]}  Rf7 {[%clk 0:00:31]} 22. Rxf7 {[%clk 0:01:34]}  Kxf7 {[%clk 0:00:32]} 23. Rh1 {[%clk 0:01:33]}  Kg7 {[%clk 0:00:32]} 24. Kd2 {[%clk 0:01:34]}  Rf8 {[%clk 0:00:32]} 25. Ke3 {[%clk 0:01:34]}  Rf5 {[%clk 0:00:33]} 26. f4 {[%clk 0:01:34]}  Ra5 {[%clk 0:00:29]} 27. a3 {[%clk 0:01:34]}  Rb5 {[%clk 0:00:29]} 28. b4 {[%clk 0:01:34]}  Rf5 {[%clk 0:00:30]} 29. c4 {[%clk 0:01:29]}  Kg8 {[%clk 0:00:30]} 30. Kf3 {[%clk 0:01:27]}  Kg7 {[%clk 0:00:30]} 31. Re1 {[%clk 0:01:25]}  Kf7 {[%clk 0:00:27]} 32. Re5 {[%clk 0:01:25]}  Ke7 {[%clk 0:00:27]} 33. Rxf5 {[%clk 0:01:25]}  exf5 {[%clk 0:00:28]} 34. Ke3 {[%clk 0:01:25]}  b5 {[%clk 0:00:27]} 35. d5 {[%clk 0:01:07]}  cxd5 {[%clk 0:00:20]} 36. cxb5 {[%clk 0:01:06]}  Kd7 {[%clk 0:00:19]} 37. Kd4 {[%clk 0:01:06]}  Kd6 {[%clk 0:00:19]} 38. a4 {[%clk 0:01:06]}  Ke6 {[%clk 0:00:19]} 39. Kc5 {[%clk 0:01:03]} 1-0


[Site "https://www.chess.com"]

[Event "Titled Tuesday Blitz May 31 Late 2022"]
[White "Terry, Renato"]
[Black "Obrien, Matthew"]
[WhiteFideId "3803457"]
[BlackFideId "2059150"]
[WhiteElo "2577"]
[BlackElo "2523"]
[Result "1-0"]
[Round "01"]
[TimeControl "180+1"]
[Date "2022.05.31"]
[WhiteClock "0:01:31"]
[BlackClock "0:00:31"]

1. d4 {[%clk 0:03:00]}  Nf6 {[%clk 0:02:57]} 2. Bg5 {[%clk 0:03:00]}  c5 {[%clk 0:02:56]} 3. d5 {[%clk 0:02:59]}  Qb6 {[%clk 0:02:56]} 4. Bxf6 {[%clk 0:02:58]}  gxf6 {[%clk 0:02:55]} 5. Qc1 {[%clk 0:02:57]}  Bh6 {[%clk 0:02:53]} 6. e3 {[%clk 0:02:56]}  f5 {[%clk 0:02:53]} 7. c4 {[%clk 0:02:56]}  f4 {[%clk 0:02:52]} 8. exf4 {[%clk 0:02:55]}  Bxf4 {[%clk 0:02:49]} 9. Qc2 {[%clk 0:02:54]}  d6 {[%clk 0:02:44]} 10. Bd3 {[%clk 0:02:52]}  Nd7 {[%clk 0:02:38]} 11. Ne2 {[%clk 0:02:51]}  Be5 {[%clk 0:02:35]} 12. Nbc3 {[%clk 0:02:51]}  Nf6 {[%clk 0:02:33]} 13. h3 {[%clk 0:02:44]}  Bd7 {[%clk 0:02:15]} 14. g4 {[%clk 0:02:37]}  h6 {[%clk 0:02:11]} 15. f4 {[%clk 0:02:36]}  Bd4 {[%clk 0:02:11]} 16. O-O-O {[%clk 0:02:33]}  Qa5 {[%clk 0:02:03]} 17. Kb1 {[%clk 0:02:32]}  a6 {[%clk 0:01:59]} 18. Nxd4 {[%clk 0:02:32]}  cxd4 {[%clk 0:01:59]} 19. Ne2 {[%clk 0:02:33]}  Qc5 {[%clk 0:01:48]} 20. g5 {[%clk 0:02:22]}  hxg5 {[%clk 0:01:47]} 21. fxg5 {[%clk 0:02:22]}  Nh5 {[%clk 0:01:45]} 22. g6 {[%clk 0:02:23]}  fxg6 {[%clk 0:01:38]} 23. Bxg6+ {[%clk 0:02:20]}  Kd8 {[%clk 0:01:38]} 24. Nxd4 {[%clk 0:02:12]}  Rc8 {[%clk 0:01:30]} 25. b3 {[%clk 0:01:54]}  Nf4 {[%clk 0:01:15]} 26. Bf5 {[%clk 0:01:53]}  b5 {[%clk 0:00:58]} 27. Bxd7 {[%clk 0:01:53]}  Kxd7 {[%clk 0:00:52]} 28. Qf5+ {[%clk 0:01:53]}  Ke8 {[%clk 0:00:51]} 29. Qxf4 {[%clk 0:01:51]}  bxc4 {[%clk 0:00:51]} 30. Ne6 {[%clk 0:01:51]}  Qa3 {[%clk 0:00:45]} 31. Ng7+ {[%clk 0:01:43]}  Kd8 {[%clk 0:00:40]} 32. Ne6+ {[%clk 0:01:31]}  Ke8 {[%clk 0:00:31]} 33. Rc1 {[%clk 0:01:31]} 1-0


[Site "https://www.chess.com"]

[Event "Titled Tuesday Blitz May 31 Late 2022"]
[White "Ticondriul"]
[Black "Jian, Alex"]
[BlackFideId "30901022"]
[WhiteElo "2655"]
[BlackElo "2111"]
[Result "0-1"]
[Round "01"]
[TimeControl "180+1"]
[Date "2022.06.01"]
[WhiteClock "0:00:54"]
[BlackClock "0:00:07"]

1. e4 {[%clk 0:02:59]}  c5 {[%clk 0:02:59]} 2. Nf3 {[%clk 0:02:59]}  e6 {[%clk 0:02:59]} 3. d3 {[%clk 0:02:59]}  Nc6 {[%clk 0:02:58]} 4. g3 {[%clk 0:02:58]}  g6 {[%clk 0:02:58]} 5. Bg2 {[%clk 0:02:58]}  Bg7 {[%clk 0:02:58]} 6. O-O {[%clk 0:02:57]}  Nge7 {[%clk 0:02:58]} 7. c3 {[%clk 0:02:58]}  d5 {[%clk 0:02:57]} 8. exd5 {[%clk 0:02:57]}  exd5 {[%clk 0:02:57]} 9. d4 {[%clk 0:02:57]}  cxd4 {[%clk 0:02:54]} 10. cxd4 {[%clk 0:02:57]}  O-O {[%clk 0:02:54]} 11. Nc3 {[%clk 0:02:53]}  Bg4 {[%clk 0:02:53]} 12. Bg5 {[%clk 0:02:50]}  h6 {[%clk 0:02:35]} 13. Bxe7 {[%clk 0:02:49]}  Nxe7 {[%clk 0:02:35]} 14. h3 {[%clk 0:02:48]}  Bxf3 {[%clk 0:02:30]} 15. Bxf3 {[%clk 0:02:48]}  Nf5 {[%clk 0:02:26]} 16. Nxd5 {[%clk 0:02:45]}  Nxd4 {[%clk 0:02:26]} 17. Bg2 {[%clk 0:02:45]}  Re8 {[%clk 0:02:22]} 18. Re1 {[%clk 0:02:43]}  Rxe1+ {[%clk 0:02:16]} 19. Qxe1 {[%clk 0:02:43]}  Nc2 {[%clk 0:02:17]} 20. Qd1 {[%clk 0:02:43]}  Nxa1 {[%clk 0:02:16]} 21. Qxa1 {[%clk 0:02:43]}  Rc8 {[%clk 0:02:10]} 22. Qd1 {[%clk 0:02:39]}  Kh7 {[%clk 0:02:02]} 23. Qb3 {[%clk 0:02:35]}  b6 {[%clk 0:01:58]} 24. h4 {[%clk 0:02:31]}  h5 {[%clk 0:01:52]} 25. Ne3 {[%clk 0:02:28]}  Qf6 {[%clk 0:01:48]} 26. Bd5 {[%clk 0:01:56]}  Qxb2 {[%clk 0:01:42]} 27. Bxf7 {[%clk 0:01:52]}  Qxb3 {[%clk 0:01:40]} 28. axb3 {[%clk 0:01:49]}  Bd4 {[%clk 0:01:40]} 29. Nc4 {[%clk 0:01:47]}  Rf8 {[%clk 0:01:34]} 30. Bd5 {[%clk 0:01:42]}  Rxf2 {[%clk 0:01:32]} 31. Kh1 {[%clk 0:01:39]}  b5 {[%clk 0:01:27]} 32. Nd6 {[%clk 0:01:39]}  a6 {[%clk 0:01:18]} 33. Ne4 {[%clk 0:01:39]}  Rb2 {[%clk 0:01:14]} 34. Ng5+ {[%clk 0:01:38]}  Kh8 {[%clk 0:01:09]} 35. Ne6 {[%clk 0:01:37]}  Be5 {[%clk 0:01:06]} 36. Nf8 {[%clk 0:01:37]}  Kg7 {[%clk 0:01:04]} 37. Ne6+ {[%clk 0:01:37]}  Kf6 {[%clk 0:01:04]} 38. Ng5 {[%clk 0:01:37]}  a5 {[%clk 0:00:58]} 39. Ne4+ {[%clk 0:01:36]}  Ke7 {[%clk 0:00:58]} 40. Bg8 {[%clk 0:01:22]}  a4 {[%clk 0:00:53]} 41. bxa4 {[%clk 0:01:20]}  bxa4 {[%clk 0:00:54]} 42. Nc5 {[%clk 0:01:19]}  a3 {[%clk 0:00:53]} 43. Nd3 {[%clk 0:01:19]}  Rb1+ {[%clk 0:00:53]} 44. Kg2 {[%clk 0:01:19]}  Bf6 {[%clk 0:00:48]} 45. Kf3 {[%clk 0:01:13]}  Rd1 {[%clk 0:00:43]} 46. Nf4 {[%clk 0:01:12]}  Kd6 {[%clk 0:00:37]} 47. Nxg6 {[%clk 0:01:08]}  Rd2 {[%clk 0:00:36]} 48. Nf4 {[%clk 0:01:08]}  a2 {[%clk 0:00:35]} 49. Bxa2 {[%clk 0:01:08]}  Rxa2 {[%clk 0:00:36]} 50. Nxh5 {[%clk 0:01:09]}  Be5 {[%clk 0:00:35]} 51. Kg4 {[%clk 0:01:09]}  Ra3 {[%clk 0:00:34]} 52. Kh3 {[%clk 0:01:01]}  Ke6 {[%clk 0:00:31]} 53. Kg4 {[%clk 0:01:02]}  Rb3 {[%clk 0:00:27]} 54. Kg5 {[%clk 0:01:01]}  Bxg3 {[%clk 0:00:27]} 55. Ng7+ {[%clk 0:01:01]}  Kf7 {[%clk 0:00:26]} 56. Nf5 {[%clk 0:01:01]}  Be1 {[%clk 0:00:18]} 57. Nd6+ {[%clk 0:00:58]}  Kg8 {[%clk 0:00:18]} 58. Ne8 {[%clk 0:00:56]}  Rb5+ {[%clk 0:00:16]} 59. Kg6 {[%clk 0:00:56]}  Bxh4 {[%clk 0:00:16]} 60. Nc7 {[%clk 0:00:55]}  Rb7 {[%clk 0:00:14]} 61. Nd5 {[%clk 0:00:55]}  Rg7+ {[%clk 0:00:14]} 62. Kf5 {[%clk 0:00:54]}  Rg5+ {[%clk 0:00:14]} 63. Ke6 {[%clk 0:00:54]}  Rg7 {[%clk 0:00:14]} 64. Kf5 {[%clk 0:00:53]}  Bd8 {[%clk 0:00:13]} 65. Nf4 {[%clk 0:00:53]}  Rg5+ {[%clk 0:00:13]} 66. Ke4 {[%clk 0:00:53]}  Kf7 {[%clk 0:00:13]} 67. Nd3 {[%clk 0:00:53]}  Rg4+ {[%clk 0:00:13]} 68. Kd5 {[%clk 0:00:53]}  Rg5+ {[%clk 0:00:13]} 69. Ke4 {[%clk 0:00:52]}  Bf6 {[%clk 0:00:14]} 70. Kf4 {[%clk 0:00:51]}  Ra5 {[%clk 0:00:13]} 71. Nf2 {[%clk 0:00:52]}  Ke6 {[%clk 0:00:13]} 72. Nd3 {[%clk 0:00:51]}  Ra4+ {[%clk 0:00:13]} 73. Ke3 {[%clk 0:00:51]}  Bg5+ {[%clk 0:00:12]} 74. Ke2 {[%clk 0:00:51]}  Kd6 {[%clk 0:00:12]} 75. Kd1 {[%clk 0:00:50]}  Rd4 {[%clk 0:00:12]} 76. Kc2 {[%clk 0:00:51]}  Kd5 {[%clk 0:00:12]} 77. Kc3 {[%clk 0:00:52]}  Rc4+ {[%clk 0:00:12]} 78. Kb3 {[%clk 0:00:52]}  Kd4 {[%clk 0:00:12]} 79. Nb4 {[%clk 0:00:52]}  Bd2 {[%clk 0:00:11]} 80. Nc2+ {[%clk 0:00:51]}  Kd3 {[%clk 0:00:11]} 81. Na3 {[%clk 0:00:52]}  Rb4+ {[%clk 0:00:10]} 82. Ka2 {[%clk 0:00:52]}  Kc3 {[%clk 0:00:08]} 83. Nb1+ {[%clk 0:00:52]}  Kc2 {[%clk 0:00:08]} 84. Na3+ {[%clk 0:00:52]}  Kc1 {[%clk 0:00:07]} 85. Ka1 {[%clk 0:00:52]}  Bc3+ {[%clk 0:00:08]} 86. Ka2 {[%clk 0:00:53]}  Rb2+ {[%clk 0:00:08]} 87. Ka1 {[%clk 0:00:54]}  Rd2# {[%clk 0:00:07]} 0-1


[Site "https://www.chess.com"]

[Event "Titled Tuesday Blitz May 31 Late 2022"]
[White "Vasquez Schroeder, Rodrigo"]
[Black "Blackman, Justin"]
[WhiteFideId "3400042"]
[BlackFideId "11100516"]
[WhiteElo "2567"]
[BlackElo "2112"]
[Result "1-0"]
[Round "01"]
[TimeControl "180+1"]
[Date "2022.06.01"]
[WhiteClock "0:00:28"]
[BlackClock "0:00:02"]

1. e4 {[%clk 0:02:58]}  e5 {[%clk 0:02:58]} 2. Nf3 {[%clk 0:02:57]}  Nc6 {[%clk 0:02:55]} 3. Bb5 {[%clk 0:02:57]}  Nge7 {[%clk 0:02:54]} 4. c3 {[%clk 0:02:54]}  a6 {[%clk 0:02:54]} 5. Ba4 {[%clk 0:02:52]}  g6 {[%clk 0:02:47]} 6. d4 {[%clk 0:02:50]}  exd4 {[%clk 0:02:39]} 7. cxd4 {[%clk 0:02:51]}  d5 {[%clk 0:02:37]} 8. exd5 {[%clk 0:02:51]}  Nxd5 {[%clk 0:02:36]} 9. Bxc6+ {[%clk 0:02:49]}  bxc6 {[%clk 0:02:35]} 10. O-O {[%clk 0:02:49]}  Bg7 {[%clk 0:02:35]} 11. Re1+ {[%clk 0:02:48]}  Be6 {[%clk 0:02:35]} 12. Bg5 {[%clk 0:02:45]}  Qd6 {[%clk 0:02:33]} 13. Nbd2 {[%clk 0:02:46]}  O-O {[%clk 0:02:33]} 14. Nc4 {[%clk 0:02:44]}  Qb4 {[%clk 0:02:33]} 15. Rc1 {[%clk 0:02:43]}  c5 {[%clk 0:02:25]} 16. Bd2 {[%clk 0:02:29]}  Qb5 {[%clk 0:02:19]} 17. a4 {[%clk 0:02:29]}  Qc6 {[%clk 0:02:14]} 18. Nce5 {[%clk 0:02:19]}  Qb7 {[%clk 0:02:13]} 19. Rxc5 {[%clk 0:02:13]}  Qxb2 {[%clk 0:02:12]} 20. Ba5 {[%clk 0:02:13]}  Rab8 {[%clk 0:02:02]} 21. Bxc7 {[%clk 0:01:55]}  Nxc7 {[%clk 0:02:00]} 22. Rxc7 {[%clk 0:01:56]}  Bd5 {[%clk 0:01:52]} 23. Rc5 {[%clk 0:01:36]}  Rfd8 {[%clk 0:01:48]} 24. h3 {[%clk 0:01:28]}  Rb4 {[%clk 0:01:44]} 25. Nd3 {[%clk 0:01:27]}  Bxf3 {[%clk 0:01:35]} 26. Qxf3 {[%clk 0:01:27]}  Qxd4 {[%clk 0:01:23]} 27. Rc7 {[%clk 0:01:23]}  Rf8 {[%clk 0:01:08]} 28. Nxb4 {[%clk 0:01:21]}  Qxb4 {[%clk 0:01:09]} 29. Qe4 {[%clk 0:01:17]}  Qb6 {[%clk 0:00:59]} 30. Rd7 {[%clk 0:00:54]}  h6 {[%clk 0:00:55]} 31. Qc4 {[%clk 0:00:47]}  Bf6 {[%clk 0:00:49]} 32. g3 {[%clk 0:00:45]}  Kg7 {[%clk 0:00:49]} 33. Kg2 {[%clk 0:00:42]}  h5 {[%clk 0:00:46]} 34. h4 {[%clk 0:00:41]}  a5 {[%clk 0:00:23]} 35. Re3 {[%clk 0:00:41]}  Qb8 {[%clk 0:00:18]} 36. Rf3 {[%clk 0:00:41]}  Qb6 {[%clk 0:00:14]} 37. Rc7 {[%clk 0:00:38]}  Qd4 {[%clk 0:00:06]} 38. Qxd4 {[%clk 0:00:30]}  Bxd4 {[%clk 0:00:07]} 39. Rd3 {[%clk 0:00:30]}  Bf6 {[%clk 0:00:06]} 40. Rd5 {[%clk 0:00:30]}  Bd8 {[%clk 0:00:06]} 41. Rc8 {[%clk 0:00:30]}  Bb6 {[%clk 0:00:02]} 42. Rxf8 {[%clk 0:00:30]}  Kxf8 {[%clk 0:00:03]} 43. Rd6 {[%clk 0:00:30]}  Bc5 {[%clk 0:00:03]} 44. Rc6 {[%clk 0:00:28]}  Bb4 {[%clk 0:00:03]} 45. f3 {[%clk 0:00:29]}  Ke7 {[%clk 0:00:03]} 46. g4 {[%clk 0:00:29]}  hxg4 {[%clk 0:00:02]} 47. fxg4 {[%clk 0:00:30]}  Kf8 {[%clk 0:00:02]} 48. h5 {[%clk 0:00:28]} 1-0


[Site "https://www.chess.com"]